bitfinex/quotes_BTCUSD_20250108
["timestamp","ask_amount","ask_price","bid_price","bid_amount"]
[1736306792097,0.20637,96913.0,96912.0,0.58611661]
[1736306792392,0.40737,96913.0,96912.0,0.58611661]
[1736306793001,0.40737,96913.0,96912.0,0.35522074]
[1736306796777,0.45507,96913.0,96912.0,0.35522074]
[1736306797003,0.71713751,96913.0,96912.0,0.35522074]
[1736306797390,0.81713751,96913.0,96912.0,0.22432755]
[1736306797598,0.9761,96908.0,96907.0,0.09287316]
[1736306797802,0.323,96902.0,96901.0,0.18574632]
[1736306798008,2.11961741,96902.0,96901.0,0.17864632]
[1736306798211,2.39657927,96902.0,96901.0,0.17864632]
[1736306798614,0.6,96893.0,96892.0,5.9e-07]
[1736306798844,1.47791437,96893.0,96892.0,5.9e-07]
[1736306801219,1.42059437,96893.0,96892.0,5.9e-07]
[1736306801446,1.46438777,96893.0,96892.0,5.9e-07]
[1736306801645,1.57694904,96893.0,96892.0,5.9e-07]
[1736306802588,0.506428,96886.0,96885.0,1.9e-07]
[1736306802786,0.62846241,96886.0,96885.0,1.9e-07]
[1736306803001,0.64283063,96886.0,96885.0,1.9e-07]
[1736306803233,0.74186504,96886.0,96885.0,1.9e-07]
[1736306803639,0.64283063,96886.0,96885.0,1.9e-07]
[1736306803838,0.94283063,96886.0,96885.0,1.9e-07]
[1736306804046,0.98662377,96886.0,96885.0,1.9e-07]
[1736306804678,1.00015075,96886.0,96885.0,1.9e-07]
[1736306809507,0.98662377,96886.0,96885.0,1.9e-07]
[1736306809669,1.08565818,96886.0,96885.0,1.9e-07]
[1736306810269,0.92930377,96886.0,96885.0,1.9e-07]
[1736306810490,0.88667743,96886.0,96885.0,1.9e-07]
[1736306810690,0.48582241,96886.0,96885.0,1.9e-07]
[1736306811101,0.38582241,96886.0,96885.0,1.9e-07]
[1736306811601,0.206428,96886.0,96885.0,1.9e-07]
[1736306811800,0.263788,96886.0,96885.0,1.9e-07]
[1736306812004,0.263788,96886.0,96885.0,0.07590019]
[1736306812135,0.206428,96886.0,96885.0,0.07590019]
[1736306812337,0.263788,96886.0,96885.0,0.07590019]
[1736306812722,0.263788,96886.0,96885.0,0.07051227]
[1736306812985,0.27995229,96886.0,96885.0,0.07051227]
[1736306813662,0.22259229,96886.0,96885.0,0.07051227]
[1736306813873,0.27995229,96886.0,96885.0,0.07051227]
[1736306815513,0.263788,96886.0,96885.0,0.07051227]
[1736306817316,0.263788,96886.0,96873.0,0.0830706]
[1736306817317,0.206453,96874.0,96873.0,0.0830706]
[1736306817503,0.206441,96880.0,96873.0,0.08322344]
[1736306817811,0.206453,96874.0,96873.0,0.08322344]
[1736306818159,0.206453,96874.0,96873.0,0.0934785]
[1736306818364,0.206453,96874.0,96873.0,0.0105785]
[1736306818507,0.27159447,96874.0,96873.0,0.0105785]
[1736306818707,0.27159447,96874.0,96873.0,0.00032344]
[1736306819023,0.79362888,96874.0,96873.0,0.00032344]
[1736306819650,0.72848741,96874.0,96873.0,0.00032344]
[1736306825290,0.72848741,96874.0,96873.0,0.01058729]
[1736306826611,0.72848741,96874.0,96873.0,0.00032344]
[1736306829491,0.72848741,96874.0,96873.0,0.01060509]
[1736306831900,0.72848741,96874.0,96873.0,0.00032344]
[1736306832335,0.82752182,96874.0,96873.0,0.00032344]
[1736306834749,0.1,96871.0,96868.0,5.757e-05]
[1736306834909,0.206464,96869.0,96868.0,5.757e-05]
[1736306835343,0.229464,96869.0,96868.0,5.757e-05]
[1736306835587,0.98709841,96869.0,96868.0,1.2e-07]
[1736306835802,0.62069895,96869.0,96868.0,1.2e-07]
[1736306836430,0.1,96851.0,96850.0,0.1276197]
[1736306836641,0.1,96851.0,96834.0,0.01663838]
[1736306836642,0.37935441,96851.0,96842.0,0.09248331]
[1736306836844,0.023,96849.0,96842.0,0.09248331]
[1736306836956,0.023,96847.0,96842.0,0.09248331]
[1736306837157,0.02387345,96847.0,96842.0,0.09248331]
[1736306837365,0.023,96847.0,96842.0,0.09248331]
[1736306837593,0.03917101,96847.0,96842.0,0.09248331]
[1736306837792,0.03917101,96847.0,96834.0,0.0001706]
[1736306842525,0.09649101,96847.0,96834.0,0.0001706]
[1736306844869,0.206524,96841.0,96840.0,0.07471277]
[1736306845072,0.206524,96841.0,96840.0,0.07486564]
[1736306846260,0.206524,96841.0,96840.0,0.12406564]
[1736306846432,0.206513,96846.0,96841.0,0.0492]
[1736306847035,0.413,96853.0,96843.0,0.0492]
[1736306847182,0.413,96853.0,96844.0,0.0492]
[1736306847400,0.412977,96858.0,96846.0,0.0492]
[1736306847602,0.206493,96856.0,96848.0,0.0492]
[1736306847801,0.2065,96852.0,96851.0,0.0815]
[1736306848569,0.2065,96852.0,96851.0,0.42337717]
[1736306848742,0.2065,96852.0,96851.0,0.45003907]
[1736306849169,0.2065,96852.0,96851.0,0.09175589]
[1736306852695,0.2065,96852.0,96851.0,0.1081701]
[1736306853074,0.2059,96852.0,96851.0,0.09175589]
[1736306854287,0.206496,96854.0,96851.0,0.09175589]
[1736306854637,0.412963,96861.0,96853.0,0.0787]
[1736306854782,0.412963,96861.0,96855.0,0.0787]
[1736306854980,0.206476,96864.0,96855.0,0.0787]
[1736306855207,0.206476,96864.0,96856.0,0.14773441]
[1736306855416,0.206466,96869.0,96857.0,0.0787]
[1736306855574,0.206485,96860.0,96858.0,0.0787]
[1736306855770,0.206485,96860.0,96859.0,0.13892204]
[1736306856410,0.206485,96860.0,96859.0,0.02667133]
[1736306862693,0.206485,96860.0,96859.0,0.11927931]
[1736306863281,0.206485,96860.0,96859.0,0.02667133]
[1736306864019,0.206485,96860.0,96859.0,0.11927931]
[1736306864421,0.206485,96860.0,96859.0,0.02667133]
[1736306865656,0.206485,96860.0,96859.0,0.0471755]
[1736306866193,0.206485,96860.0,96859.0,0.18609754]
[1736306866391,0.206485,96860.0,96859.0,0.16559337]
[1736306866563,0.206485,96860.0,96859.0,0.02667133]
[1736306867394,0.206485,96860.0,96859.0,0.36903617]
[1736306868612,0.206485,96860.0,96859.0,0.508153]
[1736306869138,0.206485,96860.0,96859.0,0.02667133]
[1736306869965,0.206485,96860.0,96859.0,0.16578816]
[1736306870169,0.206485,96860.0,96859.0,0.1863018]
[1736306871053,0.206485,96860.0,96859.0,0.38953695]
[1736306872960,0.206485,96860.0,96859.0,0.04718497]
[1736306874173,0.206485,96860.0,96859.0,0.18629489]
[1736306874789,0.206485,96860.0,96859.0,0.38951932]
[1736306875429,0.206485,96860.0,96859.0,0.04718497]
[1736306875842,0.206485,96860.0,96859.0,0.18629479]
[1736306876518,0.206485,96860.0,96859.0,0.38951386]
[1736306877898,0.206485,96860.0,96859.0,0.5286151]
[1736306878542,0.206485,96860.0,96859.0,0.04718497]
[1736306879124,0.206485,96860.0,96859.0,0.03692908]
[1736306879688,0.206485,96860.0,96858.0,0.0787]
[1736306880125,0.206485,96860.0,96859.0,0.52753558]
[1736306881096,0.206485,96860.0,96859.0,0.34230619]
[1736306882039,0.206485,96860.0,96859.0,0.1390873]
[1736306882887,0.206485,96860.0,96859.0,0.0927287]
[1736306883470,0.206485,96860.0,96859.0,0.36902976]
[1736306883671,0.206485,96860.0,96859.0,0.38959872]
[1736306884016,0.206485,96860.0,96859.0,0.36902976]
[1736306885255,0.206485,96860.0,96859.0,0.389599]
[1736306885457,0.206485,96860.0,96859.0,0.57482839]
[1736306885861,0.206485,96860.0,96859.0,0.53780507]
[1736306886282,0.206485,96860.0,96859.0,0.35257568]
[1736306886621,0.2971524,96860.0,96859.0,0.35257568]
[1736306886760,0.3731524,96860.0,96859.0,0.35257568]
[1736306886959,0.3731524,96860.0,96859.0,0.34229257]
[1736306886960,0.47218681,96860.0,96859.0,0.34229257]
[1736306887187,0.1,96852.0,96846.0,0.09281194]
[1736306887374,0.206509,96848.0,96846.0,0.09281194]
[1736306888070,0.206509,96848.0,96844.0,0.13921791]
[1736306888071,0.023,96847.0,96844.0,0.13921791]
[1736306888273,0.023,96845.0,96839.0,0.07216094]
[1736306888496,0.206524,96841.0,96839.0,0.07216094]
[1736306888704,0.263764,96841.0,96839.0,0.07216094]
[1736306889105,0.263764,96841.0,96834.0,0.0001706]
[1736306893108,0.286764,96841.0,96834.0,0.0001706]
[1736306893320,0.56807801,96841.0,96834.0,0.0001706]
[1736306893515,0.56807801,96841.0,96840.0,8.7e-07]
[1736306893516,1.53789452,96841.0,96840.0,8.7e-07]
[1736306893685,0.80186552,96841.0,96840.0,8.7e-07]
[1736306894332,0.71958592,96841.0,96840.0,8.7e-07]
[1736306899203,0.66988592,96841.0,96840.0,8.7e-07]
[1736306899403,0.58718592,96841.0,96840.0,8.7e-07]
[1736306900413,0.52994592,96841.0,96840.0,8.7e-07]
[1736306900613,0.58718592,96841.0,96840.0,8.7e-07]
[1736306900850,0.58579841,96841.0,96840.0,8.7e-07]
[1736306901191,0.52855841,96841.0,96840.0,8.7e-07]
[1736306901387,0.63758336,96841.0,96840.0,8.7e-07]
[1736306902987,0.42855841,96841.0,96840.0,8.7e-07]
[1736306903193,0.48579841,96841.0,96840.0,8.7e-07]
[1736306906172,0.386764,96841.0,96840.0,8.7e-07]
[1736306907518,0.329524,96841.0,96840.0,8.7e-07]
[1736306907679,0.386724,96841.0,96840.0,8.7e-07]
[1736306907884,0.48575841,96841.0,96840.0,8.7e-07]
[1736306908088,0.386724,96841.0,96840.0,8.7e-07]
[1736306916333,0.386724,96841.0,96840.0,0.01026504]
[1736306916653,0.386724,96841.0,96840.0,0.02670481]
[1736306917149,0.386724,96841.0,96840.0,0.01026504]
[1736306918050,0.44565757,96841.0,96840.0,0.01026504]
[1736306918422,0.386724,96841.0,96840.0,0.01026504]
[1736306919722,0.48575841,96841.0,96840.0,0.01026504]
[1736306919944,0.58548477,96841.0,96840.0,0.01026504]
[1736306920507,0.58548477,96841.0,96840.0,8.7e-07]
[1736306921105,0.48548477,96841.0,96840.0,8.7e-07]
[1736306924386,0.54243877,96841.0,96840.0,8.7e-07]
[1736306925654,0.48548477,96841.0,96840.0,8.7e-07]
[1736306930975,0.48548477,96841.0,96840.0,0.01028106]
[1736306932101,0.48548477,96841.0,96840.0,8.7e-07]
[1736306934460,0.48548477,96841.0,96840.0,0.09261677]
[1736306934879,0.48548477,96841.0,96840.0,0.10289729]
[1736306935461,0.48548477,96841.0,96840.0,0.09261677]
[1736306935865,0.48548477,96841.0,96840.0,8.7e-07]
[1736306936777,0.48548477,96841.0,96840.0,0.01028133]
[1736306937112,0.48548477,96841.0,96840.0,0.09261677]
[1736306938723,0.48536049,96841.0,96840.0,0.09261677]
[1736306939330,0.48536049,96841.0,96840.0,8.7e-07]
[1736306941952,0.5843949,96841.0,96840.0,8.7e-07]
[1736306942561,0.48536049,96841.0,96840.0,8.7e-07]
[1736306947071,0.48536049,96841.0,96840.0,0.01028784]
[1736306949674,0.63536049,96841.0,96840.0,0.01028784]
[1736306949969,0.47912608,96841.0,96840.0,0.01028784]
[1736306950488,0.47912608,96841.0,96840.0,0.12510087]
[1736306950489,0.53628608,96841.0,96840.0,0.12510087]
[1736306950531,0.53628608,96841.0,96840.0,0.60767824]
[1736306951013,0.53628608,96841.0,96840.0,0.46846033]
[1736306951140,0.47912608,96841.0,96840.0,0.46846033]
[1736306951354,0.53628608,96841.0,96840.0,0.4952161]
[1736306951814,0.53628608,96841.0,96840.0,0.47875059]
[1736306954182,0.53628608,96841.0,96840.0,0.71124877]
[1736306955613,0.53628608,96841.0,96840.0,0.70095851]
[1736306956139,0.53628608,96841.0,96840.0,0.65446418]
[1736306956994,0.53628608,96841.0,96840.0,0.66474831]
[1736306957710,0.53628608,96841.0,96840.0,0.47874446]
[1736306958102,0.53628608,96841.0,96840.0,0.71124264]
[1736306958669,0.53628608,96841.0,96840.0,0.47874446]
[1736306959176,0.53628608,96841.0,96840.0,0.71124264]
[1736306959897,0.53628608,96841.0,96840.0,0.66474917]
[1736306960554,0.53628608,96841.0,96840.0,0.47874446]
[1736306961678,0.47912608,96841.0,96840.0,0.47874446]
[1736306961899,0.53628608,96841.0,96840.0,0.66475374]
[1736306962342,0.53628608,96841.0,96840.0,0.47874446]
[1736306963907,0.53628608,96841.0,96840.0,0.66475899]
[1736306964488,0.53628608,96841.0,96840.0,0.47874446]
[1736306965222,0.53628608,96841.0,96840.0,0.71124264]
[1736306966468,0.53628608,96841.0,96840.0,0.47874446]
[1736306968225,0.53628608,96841.0,96840.0,0.35364446]
[1736306970213,0.53628608,96841.0,96840.0,0.34336033]
[1736306970365,0.53628608,96841.0,96840.0,0.52937688]
[1736306971323,0.53628608,96841.0,96840.0,0.34336033]
[1736306971492,0.53628608,96841.0,96840.0,0.35364408]
[1736306973315,0.53628608,96841.0,96840.0,0.4931607]
[1736306973765,0.53628608,96841.0,96840.0,0.35364408]
[1736306975380,0.53628608,96841.0,96840.0,0.34336033]
[1736306976367,0.53628608,96841.0,96840.0,0.35364597]
[1736306977099,0.53628608,96841.0,96840.0,0.13952178]
[1736306977308,0.65965608,96841.0,96840.0,0.13952178]
[1736306977479,0.63532049,96841.0,96840.0,0.09821578]
[1736306977894,0.379532,96837.0,96836.0,0.18602297]
[1736306978478,0.379532,96837.0,96836.0,0.34335318]
[1736306979597,0.379532,96837.0,96836.0,0.35364117]
[1736306980430,0.379532,96837.0,96836.0,0.34335318]
[1736306981231,0.379532,96837.0,96836.0,0.35364087]
[1736306982872,0.379532,96837.0,96836.0,0.34335318]
[1736306983480,0.173,96836.0,96835.0,0.09302142]
[1736306983660,0.27203441,96836.0,96835.0,0.09302142]
[1736306984531,0.379536,96835.0,96834.0,0.09319202]
[1736306985071,0.96974541,96835.0,96834.0,2e-08]
[1736306985289,0.67760482,96835.0,96834.0,2e-08]
[1736306985500,0.67760482,96835.0,96828.0,0.18602297]
[1736306985501,0.5474,96834.0,96833.0,2e-08]
[1736306985714,0.27203441,96834.0,96833.0,2e-08]
[1736306986242,0.15,96828.0,96821.0,0.0813706]
[1736306986469,0.379551,96828.0,96821.0,0.0813706]
[1736306986826,0.379551,96828.0,96827.0,0.0104538]
[1736306987259,0.379551,96828.0,96827.0,0.0001706]
[1736306991316,1.1353366,96782.0,96781.0,0.43571928]
[1736306991514,1.1924566,96782.0,96781.0,0.43571928]
[1736306991719,1.1924566,96782.0,96781.0,0.35305928]
[1736306991946,0.456705,96756.0,96755.0,0.0001708]
[1736306992150,0.513825,96756.0,96755.0,0.0001708]
[1736306992295,0.513825,96756.0,96755.0,0.08048067]
[1736306994796,0.53730018,96756.0,96755.0,0.08048067]
[1736306995399,0.53716903,96756.0,96755.0,0.08048067]
[1736306995895,0.51420903,96756.0,96755.0,0.08048067]
[1736306996213,0.51420903,96756.0,96755.0,0.07840067]
[1736306997084,0.51420903,96756.0,96755.0,0.12440067]
[1736306997846,0.51434018,96756.0,96755.0,0.12440067]
[1736306999711,0.5145036,96756.0,96755.0,0.12440067]
[1736306999916,0.51459438,96756.0,96755.0,0.12440067]
[1736307000325,0.57078816,96756.0,96755.0,0.12440067]
[1736307000533,0.57078816,96756.0,96742.0,0.0778]
[1736307000534,0.356731,96744.0,96742.0,0.0778]
[1736307000735,0.356731,96744.0,96743.0,0.00022178]
[1736307000944,0.35723845,96744.0,96743.0,0.00022178]
[1736307001148,0.35746038,96744.0,96743.0,0.00022178]
[1736307001773,0.15072938,96744.0,96743.0,0.00022178]
[1736307002632,0.35746038,96744.0,96743.0,0.00022178]
[1736307003428,0.33157683,96744.0,96743.0,0.00022178]
[1736307007602,0.40840711,96744.0,96743.0,0.00022178]
[1736307008171,0.50744152,96744.0,96743.0,0.00022178]
[1736307008370,0.45361124,96744.0,96743.0,0.00022178]
[1736307009879,0.45379392,96744.0,96743.0,0.00022178]
[1736307011088,1.57219792,96744.0,96743.0,0.00022178]
[1736307011293,1.6642443,96744.0,96743.0,0.00022178]
[1736307011873,1.5002433,96744.0,96743.0,0.00022178]
[1736307012053,1.42761671,96744.0,96743.0,0.00022178]
[1736307013521,1.42761671,96744.0,96743.0,7.8e-07]
[1736307013702,0.88133971,96744.0,96743.0,7.8e-07]
[1736307015401,0.65,96740.0,96739.0,5.8e-07]
[1736307015609,0.89069079,96740.0,96739.0,6.7e-07]
[1736307015843,1.21725625,96740.0,96739.0,6.7e-07]
[1736307018535,1.16106247,96740.0,96739.0,6.7e-07]
[1736307018679,1.13449701,96740.0,96739.0,6.7e-07]
[1736307018907,0.80727441,96740.0,96739.0,6.7e-07]
[1736307019230,0.70824409,96740.0,96739.0,6.7e-07]
[1736307019428,0.64937109,96740.0,96739.0,6.7e-07]
[1736307019629,0.70727441,96740.0,96739.0,6.7e-07]
[1736307019768,0.68027441,96740.0,96739.0,6.7e-07]
[1736307019976,0.45824,96740.0,96739.0,6.7e-07]
[1736307020186,0.45824,96740.0,96739.0,0.01018866]
[1736307020386,0.45824,96740.0,96739.0,0.04222063]
[1736307020598,0.05824,96740.0,96739.0,0.01018866]
[1736307020798,0.05824,96740.0,96739.0,0.02652083]
[1736307021411,0.23124,96740.0,96739.0,0.02652083]
[1736307021827,0.173,96740.0,96739.0,6.7e-07]
[1736307022030,0.23124,96740.0,96739.0,6.7e-07]
[1736307022694,0.173,96740.0,96739.0,6.7e-07]
[1736307022935,0.23124,96740.0,96739.0,6.7e-07]
[1736307023349,0.23159923,96740.0,96739.0,6.7e-07]
[1736307023554,0.23159923,96740.0,96739.0,0.01019485]
[1736307024380,0.23159923,96740.0,96739.0,0.0423512]
[1736307024586,0.23224394,96740.0,96739.0,0.0423512]
[1736307027627,0.33127835,96740.0,96739.0,0.0423512]
[1736307028244,0.33127835,96740.0,96739.0,0.03215702]
[1736307029502,0.33127835,96740.0,96739.0,0.04236534]
[1736307030370,0.33127835,96740.0,96739.0,0.03215702]
[1736307030504,0.43127835,96740.0,96739.0,0.03222688]
[1736307031361,1.06428735,96740.0,96739.0,0.03222688]
[1736307031766,0.54908935,96740.0,96739.0,0.03222688]
[1736307032064,0.58120035,96740.0,96739.0,0.03222688]
[1736307032522,0.43127835,96740.0,96739.0,0.03222688]
[1736307033039,0.55646935,96740.0,96739.0,0.03222688]
[1736307033635,0.55646935,96740.0,96739.0,0.04243836]
[1736307033950,0.33127835,96740.0,96739.0,0.04243836]
[1736307034158,0.20836,96740.0,96739.0,0.12343836]
[1736307034357,0.20836,96740.0,96739.0,0.12637888]
[1736307034506,0.23136,96740.0,96739.0,0.12637888]
[1736307034706,0.173,96740.0,96739.0,0.1161674]
[1736307034910,0.15,96740.0,96739.0,0.11322688]
[1736307035125,0.20836,96740.0,96739.0,0.11322688]
[1736307035351,0.20836,96740.0,96739.0,0.4578426]
[1736307035556,0.05836,96741.0,96739.0,0.45490208]
[1736307035774,0.05836,96741.0,96740.0,0.03222621]
[1736307036102,0.265095,96743.0,96740.0,0.03222621]
[1736307036311,0.265095,96743.0,96741.0,0.03222621]
[1736307036511,0.265095,96743.0,96742.0,0.03222621]
[1736307036713,0.288095,96743.0,96742.0,0.03222621]
[1736307036858,0.288095,96743.0,96742.0,0.03515163]
[1736307037058,0.229735,96743.0,96742.0,0.06171184]
[1736307037464,0.379735,96743.0,96742.0,0.02948563]
[1736307037668,0.379735,96743.0,96742.0,0.689725]
[1736307037890,0.379735,96743.0,96742.0,0.67337983]
[1736307038683,0.379735,96743.0,96742.0,0.54042224]
[1736307039339,0.438095,96743.0,96742.0,0.54042224]
[1736307039533,0.438095,96743.0,96742.0,0.55676412]
[1736307039759,0.438095,96743.0,96742.0,0.37115754]
[1736307040525,0.438095,96743.0,96742.0,0.02948234]
[1736307040751,0.438095,96743.0,96742.0,0.01314046]
[1736307041686,0.438095,96743.0,96742.0,0.15235101]
[1736307042426,0.438095,96743.0,96742.0,0.05503629]
[1736307042651,0.288095,96743.0,96742.0,0.00292542]
[1736307042844,0.49483,96743.0,96740.0,0.13921055]
[1736307043217,0.64483,96743.0,96742.0,0.00291202]
[1736307043393,0.206737,96741.0,96739.0,0.22021122]
[1736307044098,0.206737,96741.0,96740.0,0.01020868]
[1736307044687,0.356737,96741.0,96740.0,0.01020868]
[1736307044898,0.379737,96741.0,96740.0,0.01020868]
[1736307047396,0.173,96740.0,96739.0,0.08100067]
[1736307048424,0.023,96740.0,96739.0,0.08100067]
[1736307048625,0.08176501,96740.0,96739.0,0.08100067]
[1736307048908,0.08241981,96740.0,96739.0,0.08100067]
[1736307049125,0.08241981,96740.0,96739.0,0.08391363]
[1736307049795,0.08241981,96740.0,96739.0,0.08100067]
[1736307050181,0.18145422,96740.0,96739.0,0.08100067]
[1736307050387,1.56547372,96740.0,96739.0,6.7e-07]
[1736307050587,0.89388472,96740.0,96739.0,6.7e-07]
[1736307054269,0.83552472,96740.0,96739.0,6.7e-07]
[1736307054430,0.89388472,96740.0,96739.0,6.7e-07]
[1736307055201,0.99291913,96740.0,96739.0,6.7e-07]
[1736307055633,0.89388472,96740.0,96739.0,6.7e-07]
[1736307056496,0.83552472,96740.0,96739.0,6.7e-07]
[1736307056694,0.79282491,96740.0,96739.0,6.7e-07]
[1736307056906,0.33039441,96740.0,96739.0,0.07580067]
[1736307057464,0.27203441,96740.0,96739.0,0.07580067]
[1736307057801,0.30739441,96740.0,96739.0,0.07580067]
[1736307058132,0.33039441,96740.0,96739.0,0.07580067]
[1736307058607,0.173,96740.0,96739.0,0.07580067]
[1736307058812,0.08036,96740.0,96739.0,0.12340067]
[1736307059230,0.08036,96740.0,96739.0,0.12637029]
[1736307059513,0.23036,96740.0,96739.0,0.12637029]
[1736307059720,0.23036,96740.0,96739.0,0.13658115]
[1736307061455,0.23036,96740.0,96739.0,0.12637029]
[1736307061902,0.23036,96740.0,96739.0,0.12340067]
[1736307062311,0.23036,96740.0,96739.0,6.7e-07]
[1736307065610,0.456756,96732.0,96731.0,0.04996067]
[1736307065808,0.479761,96730.0,96729.0,0.0568041]
[1736307065956,1.02552141,96730.0,96729.0,0.05695714]
[1736307066307,1.02552141,96730.0,96729.0,0.00015304]
[1736307066505,0.89561741,96730.0,96729.0,0.00015304]
[1736307066711,0.88231541,96730.0,96729.0,0.00015304]
[1736307066937,0.84208541,96730.0,96729.0,0.00015304]
[1736307067447,0.8425146,96730.0,96729.0,0.00015304]
[1736307069636,0.85296421,96730.0,96729.0,0.00015304]
[1736307070036,0.356784,96719.0,96718.0,0.0752]
[1736307070200,0.53622922,96719.0,96718.0,0.0752]
[1736307070404,0.53666375,96719.0,96718.0,0.0752]
[1736307073091,0.53622922,96719.0,96718.0,0.0752]
[1736307073525,0.54639701,96719.0,96718.0,0.0752]
[1736307074447,0.48903701,96719.0,96718.0,0.0752]
[1736307074649,0.3900026,96719.0,96718.0,0.0752]
[1736307074861,0.3670026,96719.0,96718.0,0.1228]
[1736307075143,0.2744026,96719.0,96718.0,0.13301037]
[1736307075557,0.0102186,96719.0,96718.0,0.14935099]
[1736307075794,0.0102186,96719.0,96718.0,0.16569219]
[1736307075972,5.081e-05,96719.0,96718.0,0.16569219]
[1736307076171,0.01044584,96722.0,96719.0,0.1246]
[1736307076372,0.20676,96731.0,96722.0,0.077]
[1736307076608,0.206748,96737.0,96725.0,0.0476]
[1736307076828,0.26422708,96737.0,96727.0,0.0476]
[1736307077013,0.206757,96732.0,96728.0,0.077]
[1736307077214,0.206757,96732.0,96728.0,0.08000017]
[1736307077546,0.206757,96732.0,96730.0,0.077]
[1736307077998,0.206757,96732.0,96731.0,0.04698045]
[1736307078175,0.229757,96732.0,96731.0,0.04998062]
[1736307078524,0.229757,96732.0,96731.0,0.37226865]
[1736307079666,0.229757,96732.0,96731.0,0.39269561]
[1736307081092,0.229757,96732.0,96731.0,0.40043584]
[1736307081439,0.229757,96732.0,96731.0,0.38000888]
[1736307083292,0.287117,96732.0,96731.0,0.38000888]
[1736307084507,0.287117,96732.0,96731.0,0.40042949]
[1736307085212,0.229757,96732.0,96731.0,0.40042949]
[1736307085468,0.20675,96736.0,96732.0,0.0787]
[1736307085711,0.26411,96736.0,96732.0,0.0787]
[1736307086149,0.26411,96736.0,96731.0,0.39742932]
[1736307086150,0.01028615,96737.0,96734.0,0.0762]
[1736307086380,7.908e-05,96737.0,96736.0,0.0762]
[1736307086839,7.908e-05,96737.0,96736.0,0.07914191]
[1736307087053,7.908e-05,96737.0,96736.0,0.08688214]
[1736307087258,7.908e-05,96737.0,96736.0,0.52690374]
[1736307087464,7.908e-05,96737.0,96736.0,0.52587012]
[1736307087609,0.206722,96749.0,96736.0,0.49940453]
[1736307087810,0.01034367,96750.0,96740.0,0.1252]
[1736307088060,0.15,96753.0,96744.0,0.0759]
[1736307088264,0.206714,96752.0,96744.0,0.0759]
[1736307088464,0.206714,96752.0,96745.0,0.00293448]
[1736307088768,0.206714,96752.0,96751.0,0.22221673]
[1736307089197,0.206714,96752.0,96751.0,0.22515121]
[1736307089376,0.206714,96752.0,96751.0,0.23536158]
[1736307089585,0.206714,96752.0,96751.0,0.09614485]
[1736307090167,0.206714,96752.0,96751.0,0.112469]
[1736307091455,0.206714,96752.0,96751.0,0.10953452]
[1736307091656,0.206714,96752.0,96751.0,0.20230117]
[1736307091894,0.206714,96752.0,96751.0,0.20523565]
[1736307092846,0.206714,96752.0,96751.0,0.112469]
[1736307093251,0.229714,96752.0,96751.0,0.09614485]
[1736307093472,0.286874,96752.0,96751.0,0.09614485]
[1736307094654,0.286874,96752.0,96751.0,0.083]
[1736307095805,0.286874,96752.0,96751.0,0.09319319]
[1736307099503,0.229714,96752.0,96751.0,0.09319319]
[1736307099719,0.286874,96752.0,96751.0,0.09609767]
[1736307101602,0.286874,96752.0,96751.0,0.11242387]
[1736307103117,0.206714,96752.0,96751.0,0.15742387]
[1736307103740,0.206714,96752.0,96751.0,0.1651603]
[1736307104587,0.206714,96752.0,96751.0,0.18559883]
[1736307104835,0.206714,96752.0,96751.0,0.27836548]
[1736307105771,0.206714,96752.0,96751.0,0.18559883]
[1736307106641,0.229714,96752.0,96751.0,0.18559883]
[1736307107835,0.286874,96752.0,96751.0,0.18559883]
[1736307108823,0.286874,96752.0,96751.0,0.1651603]
[1736307109408,0.286874,96752.0,96751.0,0.15742387]
[1736307110654,0.286874,96752.0,96751.0,0.17787602]
[1736307111263,0.286874,96752.0,96751.0,0.04987602]
[1736307111713,0.286874,96752.0,96751.0,0.02942387]
[1736307111907,0.286874,96752.0,96751.0,0.02651939]
[1736307112633,0.286874,96752.0,96751.0,0.10781939]
[1736307113798,0.206714,96752.0,96751.0,0.11071095]
[1736307114001,0.263874,96752.0,96751.0,0.11071095]
[1736307114202,0.263874,96752.0,96751.0,0.1798752]
[1736307115007,0.26374959,96752.0,96751.0,0.26592685]
[1736307115593,0.20658959,96752.0,96751.0,0.26592685]
[1736307115732,0.26374959,96752.0,96751.0,0.26592685]
[1736307116138,0.26374959,96752.0,96751.0,0.40507683]
[1736307117119,0.26374959,96752.0,96751.0,0.6083309]
[1736307117515,0.26380058,96752.0,96751.0,0.6083309]
[1736307118072,0.26380058,96752.0,96751.0,0.56697487]
[1736307118269,0.20664058,96752.0,96751.0,0.56697487]
[1736307119376,0.20664058,96752.0,96751.0,0.79889151]
[1736307120138,0.20664058,96752.0,96751.0,0.56697487]
[1736307120744,5.099e-05,96752.0,96751.0,0.56697487]
[1736307120952,5.099e-05,96752.0,96751.0,0.65313715]
[1736307121481,5.099e-05,96752.0,96751.0,1.41156774]
[1736307121660,0.206708,96755.0,96751.0,1.33026774]
[1736307121861,0.413417,96755.0,96752.0,0.03229148]
[1736307122087,0.42372316,96755.0,96753.0,0.03229148]
[1736307122288,0.24001416,96755.0,96754.0,0.00289156]
[1736307122541,0.356711,96753.0,96752.0,0.01240414]
[1736307122756,0.379711,96753.0,96752.0,0.01240414]
[1736307122890,0.379711,96753.0,96751.0,0.82253467]
[1736307122891,0.173,96752.0,96751.0,0.82253467]
[1736307123079,0.173,96752.0,96751.0,0.23234042]
[1736307123957,0.173,96752.0,96751.0,0.485427]
[1736307124318,0.173,96752.0,96751.0,0.34600367]
[1736307124960,0.173,96752.0,96751.0,0.35623992]
[1736307126280,0.173,96752.0,96751.0,0.5421377]
[1736307126930,0.173,96752.0,96751.0,0.35623992]
[1736307129159,0.8206905,96752.0,96751.0,0.24380936]
[1736307129810,0.8206905,96752.0,96751.0,0.00414531]
[1736307130041,0.573,96750.0,96749.0,0.21535821]
[1736307130245,3.9219744,96750.0,96749.0,0.17694623]
[1736307130449,3.83491438,96750.0,96749.0,0.17694623]
[1736307130655,3.83491438,96750.0,96720.0,0.09302004]
[1736307130656,0.15,96724.0,96720.0,0.09302004]
[1736307130859,0.17919441,96723.0,96720.0,0.09302004]
[1736307131488,0.17919441,96723.0,96716.0,0.13966636]
[1736307131700,0.379788,96717.0,96716.0,0.13966636]
[1736307132102,0.379788,96717.0,96716.0,0.00013629]
[1736307133539,0.47882241,96717.0,96716.0,0.00013629]
[1736307133690,0.47916839,96717.0,96716.0,0.00013629]
[1736307134637,0.48939157,96717.0,96716.0,0.00013629]
[1736307135737,0.93182457,96717.0,96716.0,0.00013629]
[1736307135939,0.2,96713.0,96712.0,6.9e-07]
[1736307136161,0.32308289,96713.0,96712.0,5.5e-07]
[1736307136747,0.42308289,96713.0,96712.0,5.5e-07]
[1736307136859,0.57308289,96713.0,96712.0,5.5e-07]
[1736307137540,0.63024289,96713.0,96712.0,5.5e-07]
[1736307143475,0.53024289,96713.0,96712.0,5.5e-07]